bitfinex/quotes_BTCUSD_20240729
["timestamp","ask_amount","ask_price","bid_price","bid_amount"]
[1722295015201,0.01744488,66915.0,66900.0,0.5766]
[1722295015417,0.01744488,66915.0,66904.0,0.298935]
[1722295015418,0.02744488,66915.0,66904.0,0.298935]
[1722295015571,0.01744488,66914.0,66907.0,0.14946]
[1722295015913,0.01,66915.0,66905.0,0.298931]
[1722295016214,0.01494296,66914.0,66908.0,0.149457]
[1722295016434,0.01494296,66914.0,66900.0,0.5766]
[1722295016435,0.01,66911.0,66900.0,0.5766]
[1722295016582,0.08135316,66901.0,66900.0,0.5]
[1722295016781,0.22445255,66901.0,66900.0,0.5]
[1722295016989,0.68431791,66901.0,66900.0,0.5]
[1722295017425,0.98326691,66901.0,66900.0,0.5]
[1722295017621,0.74921791,66901.0,66900.0,0.5]
[1722295018282,1.11754256,66901.0,66900.0,0.5]
[1722295018513,1.16003137,66901.0,66900.0,0.500913]
[1722295018717,1.23933137,66901.0,66900.0,0.500913]
[1722295018916,1.18196695,66901.0,66900.0,0.500913]
[1722295019673,1.13947814,66901.0,66900.0,0.500913]
[1722295019869,1.15347814,66901.0,66900.0,0.500913]
[1722295020204,0.33475298,66901.0,66900.0,0.500913]
[1722295020833,0.25545298,66901.0,66900.0,0.500913]
[1722295021859,0.11235359,66901.0,66900.0,0.500913]
[1722295022061,0.04745359,66901.0,66900.0,0.650389]
[1722295022452,0.04745359,66901.0,66900.0,0.500913]
[1722295022780,0.04745359,66901.0,66900.0,0.650389]
[1722295022978,0.04745359,66901.0,66900.0,0.500913]
[1722295023969,0.93792498,66901.0,66900.0,0.500913]
[1722295024180,1.29727398,66901.0,66900.0,0.500913]
[1722295024407,1.47837398,66901.0,66900.0,0.500913]
[1722295024610,1.47837398,66901.0,66900.0,0.45082171]
[1722295025019,1.81032298,66901.0,66900.0,0.45082171]
[1722295025364,1.80032298,66901.0,66900.0,0.45082171]
[1722295025562,1.79632298,66901.0,66900.0,0.45082171]
[1722295025968,1.79632298,66901.0,66892.0,0.009251]
[1722295025969,1.365428,66893.0,66892.0,0.009251]
[1722295026175,1.64972739,66893.0,66892.0,0.009251]
[1722295026414,1.16475939,66893.0,66892.0,0.009251]
[1722295026570,0.84277539,66893.0,66892.0,0.009251]
[1722295027200,1.14175939,66893.0,66892.0,0.009251]
[1722295028148,1.44074339,66893.0,66892.0,0.009251]
[1722295028350,1.15575939,66893.0,66892.0,0.009251]
[1722295028551,1.14175939,66893.0,66892.0,0.009251]
[1722295028828,1.15575939,66893.0,66892.0,0.009251]
[1722295029201,1.14175939,66893.0,66892.0,0.009251]
[1722295029379,0.85677539,66893.0,66892.0,0.009251]
[1722295029784,0.88023375,66893.0,66892.0,0.009251]
[1722295030149,0.43175775,66893.0,66892.0,0.009251]
[1722295030440,0.41775775,66893.0,66892.0,0.009251]
[1722295030692,0.27655775,66893.0,66892.0,0.009251]
[1722295031951,0.17655775,66893.0,66892.0,0.009251]
[1722295032836,0.03345836,66893.0,66892.0,0.009251]
[1722295033124,0.03345836,66893.0,66892.0,0.457734]
[1722295033125,0.02345836,66893.0,66892.0,0.457734]
[1722295033448,0.02345836,66893.0,66892.0,0.832923]
[1722295033639,0.01,66899.0,66898.0,0.149481]
[1722295033759,0.01,66899.0,66898.0,0.448443]
[1722295034380,0.28259355,66912.0,66903.0,0.14947]
[1722295034381,0.01,66906.0,66903.0,0.14947]
[1722295034606,0.014,66893.0,66892.0,1.50953764]
[1722295034813,0.07154355,66912.0,66911.0,0.448356]
[1722295035213,0.07154355,66912.0,66911.0,0.74126]
[1722295035983,0.07154355,66912.0,66910.0,0.0638]
[1722295036220,0.07154355,66912.0,66911.0,0.149452]
[1722295036394,0.08554355,66912.0,66911.0,0.448356]
[1722295036785,0.014,66912.0,66911.0,1.0996554]
[1722295036985,0.014,66912.0,66911.0,1.046164]
[1722295037183,0.014,66912.0,66911.0,0.448356]
[1722295038007,0.014,66912.0,66910.0,0.0638]
[1722295038336,0.07154355,66911.0,66910.0,0.448362]
[1722295038540,0.07154355,66911.0,66910.0,0.74727]
[1722295038682,0.02344738,66912.0,66911.0,0.448356]
[1722295038893,0.02344738,66912.0,66911.0,0.74726]
[1722295039260,0.03244738,66912.0,66911.0,0.8306064]
[1722295039455,0.03244738,66912.0,66911.0,1.047164]
[1722295039668,0.03244738,66912.0,66911.0,1.043164]
[1722295039814,0.03244738,66912.0,66911.0,1.26450003]
[1722295040029,0.02344738,66912.0,66911.0,1.56340403]
[1722295040216,0.02344738,66912.0,66911.0,1.81080342]
[1722295040416,0.02344738,66912.0,66911.0,1.78880342]
[1722295040802,0.02344738,66912.0,66911.0,1.79080342]
[1722295042198,0.02344738,66912.0,66911.0,1.81080342]
[1722295042615,0.02444738,66912.0,66911.0,1.50789942]
[1722295042821,0.02344738,66912.0,66911.0,1.48989942]
[1722295043035,0.02344738,66912.0,66911.0,1.78880342]
[1722295043250,0.001,66912.0,66911.0,1.50789942]
[1722295043384,0.001,66912.0,66911.0,1.34680003]
[1722295043589,0.001,66912.0,66911.0,0.90479664]
[1722295043993,0.001,66912.0,66911.0,1.66570403]
[1722295044195,0.001,66912.0,66911.0,1.65086739]
[1722295044333,0.001,66912.0,66911.0,1.49506278]
[1722295044532,0.001,66912.0,66911.0,1.47447245]
[1722295044739,0.001,66912.0,66911.0,1.49647245]
[1722295044917,0.001,66912.0,66911.0,1.79537645]
[1722295045120,0.001,66912.0,66911.0,1.49647245]
[1722295045699,0.001,66912.0,66911.0,1.33137306]
[1722295046034,0.001,66912.0,66911.0,1.05446906]
[1722295046222,0.0244429,66912.0,66911.0,1.03246906]
[1722295046419,0.0244429,66912.0,66911.0,0.88936967]
[1722295048159,0.0244429,66912.0,66911.0,0.59046567]
[1722295048404,0.0244429,66912.0,66911.0,0.88936967]
[1722295048610,0.0254429,66912.0,66911.0,0.45376567]
[1722295048811,0.0254429,66912.0,66911.0,0.01]
[1722295048812,1.06919229,66912.0,66911.0,0.01]
[1722295049216,1.97371171,66912.0,66911.0,0.01]
[1722295049441,1.86309004,66912.0,66911.0,0.01]
[1722295049664,1.94026621,66912.0,66911.0,0.01]
[1722295049861,1.94026621,66912.0,66892.0,0.009251]
[1722295049862,0.159492,66893.0,66892.0,0.009251]
[1722295049979,0.01,66893.0,66892.0,0.009251]
[1722295050825,1.04285939,66893.0,66892.0,0.009251]
[1722295051004,1.06585939,66893.0,66892.0,0.009251]
[1722295051125,1.46484339,66893.0,66892.0,0.009251]
[1722295051550,2.13348865,66893.0,66892.0,0.009251]
[1722295052442,2.02992739,66893.0,66892.0,0.009251]
[1722295052655,2.02992739,66893.0,66879.0,0.009251]
[1722295052656,1.630293,66880.0,66879.0,0.009251]
[1722295052852,2.04812938,66880.0,66879.0,0.009251]
[1722295053093,2.05812938,66880.0,66879.0,0.009251]
[1722295053297,2.07109755,66880.0,66879.0,0.009251]
[1722295053499,2.08109755,66880.0,66879.0,0.009251]
[1722295053676,2.07109755,66880.0,66879.0,0.009251]
[1722295053836,2.15712748,66880.0,66879.0,0.009251]
[1722295054057,2.13752144,66880.0,66879.0,0.009251]
[1722295054441,2.13752144,66880.0,66844.0,0.009262]
[1722295054442,0.309199,66845.0,66844.0,0.009262]
[1722295054652,0.30269839,66845.0,66844.0,0.009262]
[1722295054846,0.60189739,66845.0,66844.0,0.009262]
[1722295055040,0.90109639,66845.0,66844.0,0.009262]
[1722295055245,1.56639539,66845.0,66844.0,0.009262]
[1722295055698,1.30029539,66845.0,66844.0,0.009262]
[1722295056265,1.41359199,66845.0,66844.0,0.009262]
[1722295057014,1.41359199,66845.0,66813.0,0.299338]
[1722295057015,1.057368,66834.0,66799.0,0.44444115]
[1722295057153,1.42580754,66834.0,66799.0,0.44444115]
[1722295057355,1.95378487,66834.0,66799.0,0.44444115]
[1722295057554,1.94015554,66834.0,66799.0,0.45444115]
[1722295057755,1.63090754,66834.0,66807.0,0.149683]
[1722295058004,1.14681939,66834.0,66812.0,0.1477]
[1722295058159,1.14181939,66834.0,66812.0,0.1477]
[1722295058363,1.14181939,66834.0,66812.0,0.447046]
[1722295058608,0.84257139,66834.0,66812.0,0.1477]
[1722295058811,1.14181939,66834.0,66812.0,0.1477]
[1722295059068,1.46406739,66834.0,66812.0,0.1477]
[1722295059242,1.46406739,66834.0,66798.0,0.01]
[1722295059243,0.01,66802.0,66801.0,0.149697]
[1722295059445,0.299325,66817.0,66797.0,0.0663]
[1722295059446,0.01,66803.0,66797.0,0.0663]
[1722295059647,0.01,66803.0,66798.0,0.299408]
[1722295059853,0.01,66802.0,66797.0,0.0663]
[1722295060446,0.01,66799.0,66798.0,0.149705]
[1722295060813,0.01,66799.0,66798.0,0.449115]
[1722295061029,0.01,66799.0,66798.0,0.748525]
[1722295061232,0.02348476,66801.0,66798.0,0.748525]
[1722295061233,0.02348476,66801.0,66800.0,0.748502]
[1722295061452,0.02348476,66801.0,66800.0,1.51240339]
[1722295061906,0.01,66812.0,66807.0,0.0663]
[1722295062081,0.01,66811.0,66810.0,0.449034]
[1722295062283,0.01,66810.0,66807.0,0.0663]
[1722295062485,0.01,66810.0,66809.0,0.14968]
[1722295062848,0.01,66816.0,66809.0,0.0616758]
[1722295063047,0.08469195,66838.0,66817.0,0.448987]
[1722295063048,0.01,66818.0,66817.0,0.448987]
[1722295063874,0.01,66818.0,66817.0,0.149662]
[1722295064087,0.29429939,66818.0,66791.0,0.01]
[1722295064294,0.29429939,66818.0,66781.0,0.01]
[1722295064295,0.01,66794.0,66781.0,0.01]
[1722295064504,0.01,66794.0,66793.0,0.149716]
[1722295064716,0.01,66794.0,66793.0,0.449148]
[1722295064918,0.07154355,66800.0,66799.0,0.149702]
[1722295064919,0.01,66800.0,66799.0,0.149702]
[1722295065135,0.01,66805.0,66792.0,0.06379379]
[1722295065345,0.02348607,66800.0,66794.0,0.01]
[1722295065579,0.02348607,66800.0,66799.0,1.047917]
[1722295065812,0.02348607,66800.0,66799.0,1.17700806]
[1722295065995,0.01,66792.0,66778.0,0.002]
[1722295066197,0.16658546,66800.0,66777.0,0.019262]
[1722295066198,0.01,66795.0,66794.0,0.449142]
[1722295066353,0.01,66795.0,66794.0,0.149714]
[1722295066561,0.01,66798.0,66797.0,0.149707]
[1722295066783,0.01,66798.0,66797.0,0.748535]
[1722295067011,0.03348708,66798.0,66797.0,0.449121]
[1722295067477,0.03348708,66798.0,66797.0,0.149707]
[1722295067790,0.03348708,66798.0,66791.0,0.299441]
[1722295068058,0.600448,66778.0,66766.0,0.009262]
[1722295068234,0.76381,66769.0,66766.0,0.009262]
[1722295068433,1.36289,66769.0,66766.0,0.009262]
[1722295068599,0.44113627,66769.0,66766.0,0.009262]
[1722295068944,0.6177381,66769.0,66766.0,0.009262]
[1722295069189,0.9172781,66769.0,66766.0,0.009262]
[1722295069391,1.56006237,66769.0,66766.0,0.009262]
[1722295069774,1.84960237,66769.0,66766.0,0.009262]
[1722295070157,1.3870961,66769.0,66766.0,0.009262]
[1722295070319,1.0975561,66769.0,66766.0,0.009262]
[1722295070527,0.6382461,66769.0,66766.0,0.009262]
[1722295070735,0.40007718,66769.0,66766.0,0.009262]
[1722295070948,0.41147075,66769.0,66766.0,0.009262]
[1722295071838,0.27660183,66769.0,66766.0,0.009262]
[1722295072470,0.29060183,66769.0,66766.0,0.009262]
[1722295072703,0.17660183,66769.0,66766.0,0.009262]
[1722295072962,0.17660183,66769.0,66768.0,0.3148614]
[1722295073182,0.03350244,66769.0,66768.0,0.7641774]
[1722295073413,0.03350244,66769.0,66768.0,1.0637214]
[1722295073414,0.02350244,66769.0,66768.0,1.0637214]
[1722295073674,0.01,66772.0,66771.0,0.748827]
[1722295073912,0.01,66769.0,66768.0,0.0153174]
[1722295074144,0.01,66769.0,66768.0,0.4646334]
[1722295074145,0.15309939,66769.0,66768.0,0.4646334]
[1722295075085,0.16709939,66769.0,66768.0,0.7641774]
[1722295075723,0.16709939,66769.0,66768.0,1.0637214]
[1722295075724,0.024,66769.0,66768.0,1.0637214]
[1722295075899,0.16709939,66769.0,66768.0,0.0153174]
[1722295076275,0.48841294,66769.0,66768.0,0.0153174]
[1722295076471,0.33864294,66769.0,66768.0,0.0153174]
[1722295076872,0.36214382,66769.0,66768.0,0.0153174]
[1722295077294,0.36214382,66769.0,66768.0,0.0127254]
[1722295077295,0.79745382,66769.0,66768.0,0.0127254]
[1722295077495,1.10099382,66769.0,66768.0,0.0127254]
[1722295077912,1.09854802,66769.0,66768.0,0.0127254]
[1722295078137,1.07504714,66769.0,66768.0,0.0127254]
[1722295078340,1.08749294,66769.0,66768.0,0.0127254]
[1722295078512,1.07608604,66769.0,66768.0,0.0127254]
[1722295078694,1.07608604,66769.0,66755.0,0.01]
[1722295078695,0.159799,66756.0,66755.0,0.01]
[1722295078901,0.98363794,66756.0,66755.0,0.01]
[1722295079156,1.07363794,66756.0,66755.0,0.01]
[1722295079313,1.53154594,66756.0,66755.0,0.01]
[1722295079519,1.56632561,66756.0,66755.0,0.01]
[1722295079717,1.62362561,66756.0,66755.0,0.01]
[1722295079987,1.51371561,66756.0,66755.0,0.01]
[1722295080190,1.46893594,66756.0,66755.0,0.01]
[1722295080427,0.49859839,66756.0,66755.0,0.01]
[1722295080642,0.36279939,66756.0,66755.0,0.01]
[1722295081072,0.34879939,66756.0,66755.0,0.01]
[1722295081194,0.36279939,66756.0,66755.0,0.01]
[1722295081397,0.37230615,66756.0,66755.0,0.01]
[1722295081598,0.17660615,66756.0,66755.0,0.459404]
[1722295081852,0.16709939,66756.0,66755.0,0.459404]
[1722295082050,0.024,66756.0,66755.0,0.759007]
[1722295082479,0.014,66756.0,66755.0,0.759007]
[1722295082649,0.16709939,66756.0,66755.0,0.01]
[1722295083808,0.26709939,66756.0,66755.0,0.01]
[1722295084012,0.25309939,66756.0,66755.0,0.01]
[1722295084222,0.26709939,66756.0,66755.0,0.01]
[1722295084771,0.25309939,66756.0,66755.0,0.01]
[1722295084966,0.25909939,66756.0,66755.0,0.01]
[1722295085148,0.28260423,66756.0,66755.0,0.01]
[1722295085360,0.18260423,66756.0,66755.0,0.01]
[1722295085520,0.15909939,66756.0,66755.0,0.01]
[1722295086940,0.15309939,66756.0,66755.0,0.005]
[1722295087329,0.15809939,66756.0,66755.0,0.005]
[1722295087536,0.15309939,66756.0,66755.0,0.005]
[1722295087927,0.15909939,66756.0,66755.0,0.005]
[1722295088571,0.15909939,66756.0,66755.0,0.154801]
[1722295088826,0.15909939,66756.0,66755.0,0.837207]
[1722295089029,0.016,66756.0,66755.0,1.012489]
[1722295089396,0.006,66756.0,66755.0,1.19841]
[1722295090314,0.006,66756.0,66755.0,1.520013]
[1722295090689,0.006,66756.0,66755.0,1.498013]
[1722295090860,0.006,66756.0,66755.0,1.64111239]
[1722295091253,0.01,66771.0,66770.0,0.449302]
[1722295091460,0.01,66771.0,66755.0,0.59250239]
[1722295091461,0.01,66770.0,66761.0,0.01483664]
[1722295091658,0.01,66758.0,66755.0,0.1498]
[1722295091975,0.23134255,66756.0,66755.0,0.005]
[1722295092197,0.22464294,66756.0,66755.0,0.005]
[1722295092546,0.15309939,66756.0,66755.0,0.005]
[1722295092751,0.011,66756.0,66755.0,0.604206]
[1722295092959,0.17760488,66756.0,66755.0,0.005]
[1722295093186,0.17660488,66756.0,66755.0,0.005]
[1722295093516,0.15309939,66756.0,66755.0,0.005]
[1722295093790,0.15309939,66756.0,66755.0,0.454404]
[1722295093987,0.15309939,66756.0,66755.0,0.154801]
[1722295094334,0.15309939,66756.0,66755.0,0.005]
[1722295094572,0.45269739,66756.0,66755.0,0.005]
[1722295094790,1.45838535,66756.0,66755.0,0.005]
[1722295094953,1.15878735,66756.0,66755.0,0.005]
[1722295095154,0.85918935,66756.0,66755.0,0.005]
[1722295095577,0.45098447,66756.0,66755.0,0.005]
[1722295095791,0.34559235,66756.0,66755.0,0.005]
[1722295096194,0.24559235,66756.0,66755.0,0.154801]
[1722295096415,0.24559235,66756.0,66755.0,0.005]
[1722295096416,0.24177712,66756.0,66755.0,0.005]
[1722295096621,0.24577712,66756.0,66755.0,0.005]
[1722295096926,0.24177712,66756.0,66755.0,0.454404]
[1722295097123,0.25577712,66756.0,66755.0,0.454404]
[1722295097351,0.25577712,66756.0,66755.0,0.154801]
[1722295097509,0.014,66756.0,66755.0,0.754007]
[1722295097676,0.014,66756.0,66755.0,1.05361]
[1722295097872,0.01,66767.0,66757.0,0.29959]
[1722295098115,0.01,66767.0,66766.0,0.449329]
[1722295098318,0.01,66767.0,66757.0,0.29959]
[1722295098319,0.01,66773.0,66772.0,0.216163]
[1722295098637,0.01,66775.0,66774.0,0.748792]
[1722295098776,0.11415692,66775.0,66774.0,0.748792]
[1722295098982,0.01,66778.0,66777.0,0.449256]
[1722295099191,0.01,66780.0,66779.0,0.449242]
[1722295099789,0.01,66780.0,66779.0,0.438242]
[1722295100160,0.11416494,66780.0,66779.0,0.138747]
[1722295100315,0.01,66775.0,66772.0,0.1485]
[1722295100514,0.01,66775.0,66774.0,0.149758]
[1722295100970,0.01,66775.0,66773.0,0.14976]
[1722295101189,0.03349568,66775.0,66774.0,0.149758]
[1722295101358,0.03349568,66775.0,66765.0,0.299555]
[1722295101359,0.01,66770.0,66765.0,0.365955]
[1722295101560,0.26107758,66775.0,66758.0,0.0664]
[1722295101561,0.01,66762.0,66758.0,0.0664]
[1722295102102,0.01,66762.0,66758.0,0.216194]
[1722295102441,0.01,66765.0,66759.0,0.06328456]
[1722295102639,0.01,66765.0,66764.0,0.149781]
[1722295102765,0.01,66765.0,66759.0,0.299583]
[1722295102965,0.01,66765.0,66758.0,0.0664]
[1722295103194,0.001,66762.0,66761.0,0.449364]
[1722295103560,0.01,66765.0,66760.0,0.299579]
[1722295103762,0.01,66765.0,66764.0,0.149781]
[1722295104017,0.001,66765.0,66764.0,0.449343]
[1722295104222,0.01,66767.0,66766.0,0.149776]
[1722295104591,0.01,66794.0,66760.0,0.299579]
[1722295104592,0.01,66773.0,66765.0,0.00299522]
[1722295104768,0.01,66773.0,66772.0,0.449289]
[1722295104972,0.01,66773.0,66772.0,0.149763]
[1722295105464,0.01,66775.0,66774.0,0.149758]
[1722295105821,0.01,66775.0,66774.0,0.748792]
[1722295106022,0.14309939,66787.0,66773.0,0.0616]
[1722295106023,0.01,66781.0,66775.0,0.299513]
[1722295106205,0.01,66782.0,66781.0,0.449229]
[1722295106406,0.01,66784.0,66783.0,0.149738]
[1722295107028,0.01,66784.0,66783.0,0.449215]
[1722295107391,0.14971,66796.0,66776.0,0.0437313]
[1722295107392,0.01,66791.0,66790.0,0.293923]
[1722295107533,0.01,66791.0,66790.0,0.892815]
[1722295107930,0.01,66791.0,66790.0,0.593369]
[1722295108187,0.01,66793.0,66792.0,0.299437]
[1722295108354,0.01,66793.0,66792.0,0.149718]
[1722295108561,0.01,66792.0,66791.0,0.14972]
[1722295108965,0.01,66792.0,66791.0,0.449161]
[1722295109313,0.01,66792.0,66790.0,0.0803]
[1722295109623,0.023491,66793.0,66783.0,0.149738]
[1722295109624,0.01,66786.0,66783.0,0.149738]
[1722295109748,0.01,66778.0,66777.0,0.0604]
[1722295109946,0.01,66778.0,66772.0,0.0813]
[1722295109947,0.01,66773.0,66772.0,0.0813]
[1722295110202,0.08154355,66773.0,66772.0,0.0813]
[1722295110570,0.01,66773.0,66772.0,0.530589]
[1722295110791,0.01,66773.0,66772.0,0.830115]
[1722295110994,0.01,66774.0,66773.0,0.299522]
[1722295111203,0.01,66774.0,66773.0,0.449283]
[1722295111378,0.14309939,66777.0,66776.0,0.149754]
[1722295111581,0.01,66785.0,66776.0,0.0890505]
[1722295111808,0.01,66794.0,66780.0,0.012]
[1722295112047,0.11482031,66793.0,66792.0,0.515355]
[1722295112166,0.01,66781.0,66779.0,0.0812]
[1722295112391,0.01,66781.0,66780.0,0.149745]
[1722295112838,0.01,66786.0,66785.0,0.149734]
[1722295113232,0.01,66786.0,66785.0,0.449202]
[1722295113418,0.03349341,66786.0,66785.0,0.449202]
[1722295113873,0.03349341,66786.0,66779.0,0.0812]
[1722295113874,0.03349341,66786.0,66781.0,0.299483]
[1722295114074,0.01,66786.0,66785.0,0.149734]
[1722295114385,0.01,66786.0,66785.0,0.449202]
[1722295115229,0.01,66786.0,66785.0,0.149734]
[1722295115713,0.01,66786.0,66781.0,0.299484]
[1722295115905,0.01,66786.0,66781.0,0.149741]
[1722295116109,0.01,66786.0,66781.0,0.149742]
[1722295116248,0.01,66786.0,66782.0,0.149739]
[1722295116443,0.01,66786.0,66779.0,0.0812]
[1722295116804,0.11268154,66785.0,66780.0,0.299489]
[1722295117009,0.11268154,66785.0,66779.0,0.082124]
[1722295117143,0.02349296,66784.0,66779.0,0.082124]
[1722295117344,0.02349296,66784.0,66783.0,0.149738]
[1722295117800,0.02349296,66784.0,66783.0,0.449215]
[1722295118161,0.01,66786.0,66784.0,0.149736]
[1722295118396,0.459235,66780.0,66779.0,0.000924]
[1722295118595,1.08517918,66780.0,66779.0,0.000924]
[1722295119057,1.38466918,66780.0,66779.0,0.000924]
[1722295119194,1.53373534,66780.0,66779.0,0.000924]
[1722295119402,1.64075135,66780.0,66779.0,0.000924]
[1722295120657,1.64099222,66780.0,66779.0,0.000924]
[1722295120969,1.83322534,66780.0,66779.0,0.000924]
[1722295121219,1.64099239,66780.0,66779.0,0.000924]
[1722295121409,1.98432781,66780.0,66779.0,0.000924]
[1722295121671,2.01082762,66780.0,66779.0,0.001924]
[1722295121826,1.6674922,66780.0,66779.0,0.000924]
[1722295122008,1.66893532,66780.0,66779.0,0.000924]
[1722295122209,1.71578074,66780.0,66779.0,0.001924]
[1722295122413,1.6674922,66780.0,66779.0,0.000924]
[1722295122724,1.6674922,66780.0,66779.0,0.001924]
[1722295122924,1.71433878,66780.0,66779.0,0.001924]
[1722295123383,1.8288922,66780.0,66779.0,0.001924]
[1722295123572,2.32907304,66780.0,66779.0,0.001924]
[1722295123772,2.30607304,66780.0,66779.0,0.001924]
[1722295123979,2.2183822,66780.0,66779.0,0.001924]
[1722295124198,2.28415831,66780.0,66779.0,0.001924]
[1722295124348,2.30608368,66780.0,66779.0,0.001924]
[1722295124558,2.2183822,66780.0,66779.0,0.001924]
[1722295125131,1.98467753,66780.0,66779.0,0.001924]
[1722295125770,1.9188922,66780.0,66779.0,0.001924]
[1722295125969,1.78813534,66780.0,66779.0,0.001924]
[1722295126570,1.8946248,66780.0,66779.0,0.001924]
[1722295126912,1.98238845,66780.0,66779.0,0.001924]
[1722295127112,1.97638845,66780.0,66779.0,0.000924]
[1722295127838,1.97638845,66780.0,66779.0,0.001924]
[1722295127839,1.97938845,66780.0,66779.0,0.001924]
[1722295128045,1.89128043,66780.0,66779.0,0.001924]
[1722295129151,1.88828043,66780.0,66779.0,0.000924]
[1722295129354,1.91178068,66780.0,66779.0,0.000924]
[1722295129938,1.91025477,66780.0,66779.0,0.000924]
[1722295130141,0.54163057,66780.0,66779.0,0.000924]
[1722295130347,0.88671204,66780.0,66779.0,0.000924]
[1722295130731,0.28841088,66780.0,66779.0,0.000924]
[1722295130908,0.12181124,66780.0,66779.0,0.000924]
[1722295131116,0.12181124,66780.0,66779.0,0.150671]
[1722295131117,0.11181124,66780.0,66779.0,0.150671]
[1722295131364,0.01,66785.0,66779.0,0.150671]
[1722295131365,0.01,66785.0,66784.0,0.1448]
[1722295131682,0.01,66785.0,66784.0,0.591008]
[1722295131830,0.12409327,66785.0,66784.0,0.291536]
[1722295132256,0.11409327,66785.0,66784.0,0.591008]
[1722295132434,0.11409327,66785.0,66784.0,0.9797209]
[1722295132635,0.01084,66793.0,66784.0,0.2430409]
[1722295132832,0.16554362,66792.0,66791.0,0.14972]
[1722295133204,0.00084,66793.0,66792.0,0.146718]
[1722295133332,0.00084,66793.0,66792.0,0.745592]
[1722295133701,0.00084,66793.0,66792.0,0.8204506]
[1722295133928,0.00084,66793.0,66792.0,1.1859876]
[1722295134262,0.00084,66793.0,66792.0,1.2079876]
[1722295134461,0.00084,66793.0,66792.0,1.2664876]
[1722295135318,0.00084,66793.0,66792.0,1.70902399]
[1722295135500,0.01,66813.0,66812.0,0.149673]
[1722295135699,0.01,66813.0,66812.0,0.293073]
[1722295135964,0.16548963,66813.0,66812.0,0.59242]
[1722295136118,0.01,66813.0,66812.0,0.1434]
[1722295136335,0.24429794,66815.0,66814.0,0.149669]
[1722295136725,0.23429794,66815.0,66814.0,0.449007]
[1722295137172,0.23429794,66815.0,66814.0,0.748345]
[1722295137339,0.23429794,66815.0,66814.0,1.059683]
[1722295137644,0.23429794,66815.0,66814.0,1.33468239]
[1722295137841,0.23429794,66815.0,66814.0,1.63402039]
[1722295138139,0.07154355,66825.0,66814.0,1.63402039]
[1722295138140,0.07154355,66825.0,66824.0,0.149646]
[1722295138539,0.07154355,66825.0,66824.0,0.1945404]
[1722295138709,0.07154355,66825.0,66824.0,0.448939]
[1722295138912,0.07154355,66825.0,66824.0,0.748232]
[1722295139147,0.03154355,66825.0,66824.0,0.748232]
[1722295139524,0.03154355,66825.0,66824.0,0.892132]
[1722295140311,0.00844,66829.0,66828.0,0.748187]
[1722295140479,0.00844,66829.0,66828.0,0.8373957]
[1722295140784,0.01092355,66833.0,66832.0,0.748142]
[1722295141412,0.01092355,66833.0,66832.0,1.047399]
[1722295141606,0.00084,66833.0,66832.0,1.047399]
[1722295141849,0.00084,66833.0,66832.0,1.124299]
[1722295142066,0.00084,66833.0,66832.0,1.31283343]
[1722295142462,0.00084,66833.0,66832.0,1.33483343]
[1722295142844,0.00084,66833.0,66832.0,1.47793282]
[1722295143049,0.00084,66833.0,66832.0,1.77718982]
[1722295143928,0.00084,66833.0,66832.0,2.07644682]
[1722295144125,0.00084,66833.0,66832.0,2.05444682]
[1722295144640,0.00844,66842.0,66839.0,1.511817]
[1722295144858,0.00844,66842.0,66839.0,1.80785242]
[1722295145065,0.00844,66842.0,66841.0,1.212459]
[1722295145270,0.00844,66842.0,66841.0,1.65477539]
[1722295145473,0.03190913,66842.0,66841.0,1.35555839]
[1722295145746,0.03190913,66842.0,66841.0,1.35355839]
[1722295145747,0.00844,66842.0,66841.0,1.35355839]
[1722295145972,0.00844,66842.0,66841.0,1.47665778]
[1722295146163,0.00844,66842.0,66841.0,0.73512439]
[1722295146744,0.00844,66842.0,66841.0,0.1432]
[1722295146974,0.00844,66842.0,66826.0,0.022]
[1722295147251,0.07154355,66831.0,66830.0,0.448899]
[1722295147423,0.07154355,66831.0,66830.0,0.66759823]
[1722295147631,0.07154355,66831.0,66830.0,0.52449884]
[1722295147867,0.07154355,66831.0,66830.0,0.82376484]
[1722295148796,0.02347366,66831.0,66830.0,1.26613023]
[1722295149217,0.02347366,66831.0,66830.0,1.73739623]
[1722295149524,0.02347366,66831.0,66830.0,1.72939623]
[1722295149735,0.00844,66842.0,66841.0,1.047259]
[1722295149979,0.00844,66842.0,66841.0,1.43928429]
[1722295150188,0.00844,66842.0,66841.0,1.46128429]
[1722295150407,0.00844,66842.0,66841.0,1.76050129]
[1722295150642,0.00844,66842.0,66841.0,1.46128429]
[1722295150848,0.00844,66842.0,66841.0,1.14990393]
[1722295151003,0.00844,66842.0,66841.0,1.04297803]
[1722295151858,0.00844,66842.0,66841.0,1.05097803]
[1722295152218,0.00844,66842.0,66841.0,1.36219503]
[1722295152420,0.00844,66842.0,66841.0,0.15183664]
[1722295152710,0.00844,66842.0,66833.0,0.14933664]
[1722295152903,0.00844,66842.0,66841.0,0.149608]
[1722295153109,0.031911,66842.0,66841.0,0.448825]
[1722295153647,0.031911,66842.0,66841.0,1.047259]
[1722295153872,0.031911,66842.0,66841.0,1.06509564]
[1722295154118,0.00844,66842.0,66841.0,0.90897803]
[1722295154294,0.00844,66842.0,66841.0,1.33121603]
[1722295154691,0.00844,66842.0,66841.0,1.02216239]
[1722295155101,0.00844,66842.0,66841.0,1.01416239]
[1722295155325,0.00844,66842.0,66841.0,1.32137939]
[1722295155529,0.00844,66842.0,66841.0,1.34137939]
[1722295155774,0.00844,66842.0,66841.0,1.33337939]
[1722295155921,0.00844,66842.0,66841.0,1.77409639]
[1722295156124,0.00844,66842.0,66841.0,1.78209639]
[1722295156937,0.00844,66842.0,66841.0,1.77409639]
[1722295157337,0.03190903,66842.0,66841.0,1.77409639]